bitfinex/quotes_BTCUSD_20241206
["timestamp","ask_amount","ask_price","bid_price","bid_amount"]
[1733524359370,0.01279446,100530.0,100520.0,0.1226717]
[1733524359581,0.01279446,100530.0,100520.0,0.211731]
[1733524361183,0.01279444,100530.0,100520.0,0.211731]
[1733524363788,0.01279444,100530.0,100520.0,0.34531995]
[1733524364234,0.0028682,100530.0,100520.0,0.34531995]
[1733524364699,0.0028682,100530.0,100520.0,0.34527345]
[1733524368678,0.0028682,100530.0,100520.0,0.52335485]
[1733524369781,0.0028682,100530.0,100520.0,0.52333433]
[1733524370235,0.01279407,100530.0,100520.0,0.52333433]
[1733524370926,0.01279407,100530.0,100520.0,0.53349369]
[1733524374906,0.01279643,100530.0,100520.0,0.53349369]
[1733524375912,0.01279643,100530.0,100520.0,0.53737665]
[1733524378523,0.01279626,100530.0,100520.0,0.53737665]
[1733524379796,0.0028682,100530.0,100520.0,0.53737665]
[1733524380031,0.0028682,100530.0,100520.0,0.759967]
[1733524380683,0.0028682,100530.0,100520.0,0.53737665]
[1733524381569,0.0028682,100530.0,100520.0,0.759967]
[1733524381831,0.0028682,100530.0,100520.0,0.53737665]
[1733524382500,0.0028682,100530.0,100520.0,0.759967]
[1733524382727,0.01279621,100530.0,100520.0,0.35930437]
[1733524383397,0.01279621,100530.0,100520.0,0.53737665]
[1733524384081,0.01279621,100530.0,100520.0,0.35930437]
[1733524384769,0.01279621,100530.0,100520.0,0.53737665]
[1733524385867,0.01279621,100530.0,100520.0,0.52721729]
[1733524386775,0.09549621,100530.0,100520.0,0.45111729]
[1733524388105,0.09549717,100530.0,100520.0,0.45111729]
[1733524388570,0.09549717,100530.0,100520.0,0.4513666]
[1733524391534,0.09549807,100530.0,100520.0,0.4513666]
[1733524391738,0.19552758,100530.0,100520.0,0.4513666]
[1733524393522,0.19552758,100530.0,100520.0,0.45139868]
[1733524394394,0.19552758,100530.0,100520.0,0.27320134]
[1733524394847,0.18559771,100530.0,100520.0,0.27320134]
[1733524395063,0.19552785,100530.0,100520.0,0.27320134]
[1733524398835,0.19552785,100530.0,100520.0,0.45139868]
[1733524401853,0.19552529,100530.0,100520.0,0.45139868]
[1733524403601,0.19552529,100530.0,100520.0,0.45121329]
[1733524403853,0.19552529,100530.0,100520.0,0.44991565]
[1733524408738,0.19552529,100530.0,100520.0,0.44980246]
[1733524408944,0.19552555,100530.0,100520.0,0.44980246]
[1733524413267,0.24242555,100530.0,100520.0,0.11518934]
[1733524413503,0.32184426,100530.0,100520.0,0.02615702]
[1733524413725,0.768577,100530.0,100520.0,0.02615702]
[1733524414364,0.768577,100530.0,100520.0,0.01815702]
[1733524414743,0.768577,100530.0,100520.0,0.0129693]
[1733524414744,0.767577,100530.0,100520.0,0.0129693]
[1733524415176,0.766577,100530.0,100520.0,0.01219995]
[1733524415609,0.768577,100530.0,100520.0,0.0039693]
[1733524416065,0.768577,100530.0,100520.0,0.0009693]
[1733524416538,0.768577,100530.0,100520.0,0.0019693]
[1733524416766,0.90785873,100530.0,100520.0,0.0019693]
[1733524417467,0.818577,100530.0,100520.0,0.0019693]
[1733524417700,0.90784545,100530.0,100520.0,0.0019693]
[1733524417922,0.68455718,100530.0,100520.0,0.0019693]
[1733524418357,1.23165718,100530.0,100520.0,0.01040414]
[1733524419041,1.3655408,100530.0,100520.0,0.01040414]
[1733524420932,1.23165718,100530.0,100520.0,0.01040414]
[1733524423696,1.23101144,100530.0,100520.0,0.01040414]
[1733524425219,1.38101144,100530.0,100520.0,0.01040414]
[1733524425444,1.5148029,100530.0,100520.0,0.01040414]
[1733524425663,1.51479151,100530.0,100520.0,0.01040414]
[1733524427960,0.83386351,100530.0,100520.0,0.01040414]
[1733524428181,0.65550534,100530.0,100520.0,0.01040414]
[1733524428408,0.87311449,100530.0,100520.0,0.01040414]
[1733524428626,0.87205186,100530.0,100520.0,0.01040414]
[1733524428846,1.36637807,100530.0,100520.0,0.01040414]
[1733524429043,0.1286,100500.0,100490.0,0.0017382]
[1733524429297,0.46642561,100500.0,100490.0,0.0017382]
[1733524429725,0.33267425,100500.0,100490.0,0.0017382]
[1733524430551,0.24350668,100500.0,100490.0,0.0017382]
[1733524431226,0.24550668,100500.0,100490.0,0.0017382]
[1733524431875,0.24550668,100500.0,100490.0,0.01027764]
[1733524433211,0.24550668,100500.0,100490.0,0.01127764]
[1733524435220,1.08165336,100500.0,100490.0,0.01127764]
[1733524435439,1.32843958,100500.0,100490.0,0.01127764]
[1733524435873,1.33876516,100500.0,100490.0,0.0027382]
[1733524436093,1.33876516,100500.0,100490.0,0.0017382]
[1733524436549,1.34276516,100500.0,100490.0,0.0017382]
[1733524436765,1.34076516,100500.0,100490.0,0.0017382]
[1733524436982,1.33676516,100500.0,100490.0,0.0017382]
[1733524437205,1.15407179,100500.0,100490.0,0.0017382]
[1733524437662,0.49640177,100500.0,100490.0,0.0017382]
[1733524437892,1.00706916,100500.0,100490.0,0.0017382]
[1733524438116,1.03068187,100500.0,100490.0,0.01035038]
[1733524438338,1.03068187,100500.0,100490.0,0.0017382]
[1733524438562,0.81206516,100500.0,100490.0,0.0017382]
[1733524439435,1.28368587,100500.0,100480.0,0.000868]
[1733524439656,1.1733651,100490.0,100480.0,0.000868]
[1733524439877,1.10154621,100490.0,100480.0,0.000868]
[1733524440108,1.57525629,100490.0,100480.0,0.000868]
[1733524440368,1.62075629,100490.0,100480.0,0.000868]
[1733524440609,1.73073361,100490.0,100480.0,0.000868]
[1733524440835,1.59716359,100490.0,100480.0,0.000868]
[1733524441293,1.60616359,100490.0,100480.0,0.000868]
[1733524441512,1.73948207,100490.0,100480.0,0.000868]
[1733524442465,1.74448207,100490.0,100480.0,0.001]
[1733524442686,1.23544977,100490.0,100480.0,0.001]
[1733524442926,0.549344,100480.0,100470.0,0.001]
[1733524443153,1.27135362,100480.0,100470.0,0.0007368]
[1733524443371,1.13251203,100480.0,100470.0,0.0007368]
[1733524443591,0.99916476,100480.0,100470.0,0.0007368]
[1733524443831,0.3273,100470.0,100460.0,0.000869]
[1733524444045,0.42732951,100470.0,100460.0,0.000869]
[1733524444287,0.42732951,100470.0,100460.0,0.00040203]
[1733524444501,0.44721173,100470.0,100460.0,0.00040203]
[1733524444953,0.66927573,100470.0,100460.0,0.00040203]
[1733524445687,0.67427573,100470.0,100460.0,0.00040203]
[1733524446575,0.68327573,100470.0,100460.0,0.00040203]
[1733524448084,0.15,100460.0,100450.0,0.0008685]
[1733524448312,0.35925866,100460.0,100450.0,0.0008685]
[1733524448524,0.40545866,100460.0,100450.0,0.0008685]
[1733524448961,0.42845866,100460.0,100450.0,0.0008685]
[1733524449179,0.43145866,100460.0,100450.0,0.0008685]
[1733524449644,0.47648673,100460.0,100450.0,0.0008685]
[1733524449857,0.69789239,100460.0,100450.0,0.0008685]
[1733524450347,0.70689239,100460.0,100450.0,0.0008685]
[1733524450767,0.50780839,100460.0,100450.0,0.0008685]
[1733524451450,0.70689239,100460.0,100450.0,0.0008685]
[1733524452586,0.62459239,100460.0,100440.0,0.0017368]
[1733524452798,0.37392669,100450.0,100440.0,0.0017368]
[1733524453018,0.37868057,100450.0,100440.0,0.0017368]
[1733524453523,0.35635891,100450.0,100440.0,0.0017368]
[1733524454418,0.36038673,100450.0,100440.0,0.0017368]
[1733524455286,0.36538673,100450.0,100440.0,0.0017368]
[1733524459306,0.37556511,100450.0,100440.0,0.0017368]
[1733524461196,0.35160789,100450.0,100440.0,0.0017368]
[1733524466049,0.35459925,100450.0,100440.0,0.0017368]
[1733524467299,0.40459925,100450.0,100440.0,0.0017368]
[1733524467506,0.7471,100440.0,100430.0,0.00038246]
[1733524467711,0.84712951,100440.0,100430.0,0.00038246]
[1733524469822,0.85312951,100440.0,100430.0,0.00038246]
[1733524470893,0.85312951,100440.0,100430.0,0.00901827]
[1733524473153,0.85308121,100440.0,100430.0,0.00038246]
[1733524473379,0.85308121,100440.0,100430.0,0.00902032]
[1733524475563,0.85308121,100440.0,100430.0,0.00729144]
[1733524478520,0.30598121,100440.0,100430.0,0.00729144]
[1733524481364,0.85308121,100440.0,100430.0,0.00729144]
[1733524482265,0.9419997,100440.0,100430.0,0.00729144]
[1733524482619,1.07537743,100440.0,100430.0,0.00729144]
[1733524483041,1.07596264,100440.0,100430.0,0.00729144]
[1733524483589,1.02601094,100440.0,100430.0,0.00903004]
[1733524483762,0.0499517,100430.0,100420.0,0.08276091]
[1733524483956,0.16569339,100430.0,100420.0,0.08276091]
[1733524484265,0.14998121,100430.0,100420.0,0.08276091]
[1733524484475,0.14998121,100430.0,100420.0,0.00576091]
[1733524484689,0.37300061,100430.0,100420.0,0.00576091]
[1733524484927,0.50146444,100430.0,100420.0,0.00576091]
[1733524485558,0.63527609,100430.0,100420.0,0.00576091]
[1733524486115,0.63627609,100430.0,100420.0,0.00576091]
[1733524486511,1.46327609,100430.0,100420.0,0.00576091]
[1733524486721,1.44168442,100430.0,100420.0,0.00576091]
[1733524487169,1.21866501,100430.0,100420.0,0.00576091]
[1733524487594,1.21905358,100430.0,100420.0,0.00576091]
[1733524488379,1.22913952,100430.0,100420.0,0.00576091]
[1733524488797,1.23413952,100430.0,100420.0,0.00576091]
[1733524490211,1.21112731,100430.0,100420.0,0.00576091]
[1733524490610,1.23412731,100430.0,100420.0,0.00576091]
[1733524491421,1.5355831,100430.0,100420.0,0.00576091]
[1733524492082,1.23412731,100430.0,100420.0,0.00576091]
[1733524493272,1.23406625,100430.0,100420.0,0.00576091]
[1733524493492,0.68696625,100430.0,100420.0,0.00576091]
[1733524495232,0.63706625,100430.0,100420.0,0.00576091]
[1733524495432,0.63793565,100430.0,100420.0,0.00576091]
[1733524498829,0.93932275,100430.0,100420.0,0.00576091]
[1733524499270,0.93832275,100430.0,100420.0,0.00576091]
[1733524499476,0.93332275,100430.0,100420.0,0.00576091]
[1733524499681,0.63193565,100430.0,100420.0,0.00576091]
[1733524500132,0.64093565,100430.0,100420.0,0.00576091]
[1733524500345,0.68613565,100430.0,100420.0,0.00576091]
[1733524500581,0.68913565,100430.0,100420.0,0.00576091]
[1733524500796,0.69208417,100430.0,100420.0,0.00576091]
[1733524501908,0.99347127,100430.0,100420.0,0.00576091]
[1733524502358,0.71509638,100430.0,100420.0,0.00576091]
[1733524502570,1.01648348,100430.0,100420.0,0.00576091]
[1733524503214,0.71509638,100430.0,100420.0,0.00576091]
[1733524503884,1.43607902,100430.0,100420.0,0.00576091]
[1733524504404,0.2529,100420.0,100410.0,0.00030846]
[1733524504611,0.9864876,100420.0,100410.0,0.00030846]
[1733524504825,0.65706877,100420.0,100410.0,0.00766469]
[1733524505039,0.65706877,100420.0,100410.0,0.00030846]
[1733524505287,1.25391887,100420.0,100410.0,0.00030846]
[1733524505623,1.26291887,100420.0,100410.0,0.00030846]
[1733524506224,0.96153177,100420.0,100410.0,0.00030846]
[1733524506640,1.26291887,100420.0,100410.0,0.00030846]
[1733524506869,1.26791887,100420.0,100410.0,0.00030846]
[1733524507114,1.46139047,100420.0,100410.0,0.00030846]
[1733524507316,1.00020245,100420.0,100410.0,0.00030846]
[1733524509217,1.26764041,100420.0,100410.0,0.00030846]
[1733524509444,1.02217741,100420.0,100410.0,0.00030846]
[1733524509654,1.21592747,100420.0,100410.0,0.00030846]
[1733524509857,0.80033945,100420.0,100410.0,0.00030846]
[1733524510060,1.39680178,100420.0,100410.0,0.00030846]
[1733524510320,1.06776429,100420.0,100410.0,0.00030846]
[1733524510536,0.96554019,100420.0,100410.0,0.00030846]
[1733524512240,0.96541918,100420.0,100410.0,0.00030846]
[1733524516427,0.67065618,100420.0,100410.0,0.00030846]
[1733524516715,0.64046684,100420.0,100410.0,0.12650846]
[1733524516928,0.23954686,100420.0,100410.0,0.12650846]
[1733524517155,0.12394569,100420.0,100410.0,0.12650846]
[1733524517397,0.11494569,100420.0,100410.0,0.13377451]
[1733524517610,0.10994569,100420.0,100410.0,0.13377451]
[1733524517833,0.12194569,100420.0,100410.0,0.13377451]
[1733524518055,0.11294569,100420.0,100410.0,0.13377451]
[1733524518485,0.11992827,100420.0,100410.0,0.13377451]
[1733524518910,0.12092827,100420.0,100410.0,0.13377451]
[1733524519124,0.11792827,100420.0,100410.0,0.13377451]
[1733524519340,0.11792827,100420.0,100410.0,0.13477451]
[1733524519980,0.10602951,100420.0,100410.0,0.13477451]
[1733524522238,0.10602951,100420.0,100410.0,0.13377451]
[1733524522468,0.10602951,100420.0,100410.0,0.13677451]
[1733524522899,0.10602951,100420.0,100410.0,0.13377451]
[1733524523331,0.10602951,100420.0,100410.0,0.13477451]
[1733524524086,0.11344942,100420.0,100410.0,0.13477451]
[1733524524745,0.10744942,100420.0,100410.0,0.13477451]
[1733524525174,0.10744942,100420.0,100410.0,0.13377451]
[1733524525428,0.10744942,100420.0,100410.0,0.13677451]
[1733524525672,0.10844942,100420.0,100410.0,0.13677451]
[1733524525894,0.10844942,100420.0,100410.0,0.13377451]
[1733524526327,0.10844942,100420.0,100410.0,0.13477451]
[1733524526762,0.10102951,100420.0,100410.0,0.13477451]
[1733524528556,0.001,100420.0,100410.0,0.15777451]
[1733524528768,0.001,100420.0,100410.0,0.15877023]
[1733524530379,0.0018694,100420.0,100410.0,0.15877023]
[1733524534523,0.0018694,100420.0,100410.0,0.16880045]
[1733524534945,0.0018694,100420.0,100410.0,0.16703599]
[1733524535199,0.0018694,100420.0,100410.0,0.14230712]
[1733524536504,0.0018694,100420.0,100410.0,0.36530712]
[1733524536733,0.0018694,100420.0,100410.0,0.3643114]
[1733524537947,0.0008694,100420.0,100410.0,0.3633114]
[1733524538162,0.0028694,100420.0,100410.0,0.3683114]
[1733524538635,0.0008694,100420.0,100410.0,0.3633114]
[1733524538891,0.0028694,100420.0,100410.0,0.3683114]
[1733524540234,0.0028694,100420.0,100410.0,0.51834091]
[1733524542013,0.0028694,100420.0,100410.0,0.60738524]
[1733524542428,0.0028694,100420.0,100410.0,0.74269054]
[1733524542615,0.0028694,100420.0,100410.0,0.74239371]
[1733524543094,0.0008694,100430.0,100420.0,0.4053]
[1733524543401,0.0008694,100430.0,100420.0,0.48232951]
[1733524543599,0.0008694,100430.0,100420.0,0.48973498]
[1733524544273,0.0018694,100430.0,100420.0,0.49473498]
[1733524544462,0.0028694,100430.0,100420.0,0.49473498]
[1733524545433,0.0028694,100430.0,100420.0,0.51773498]
[1733524546274,0.0018694,100430.0,100420.0,0.51773498]
[1733524546530,0.0028694,100430.0,100420.0,0.55146125]
[1733524546963,0.0018694,100430.0,100420.0,0.54646125]
[1733524547168,0.0028694,100430.0,100420.0,0.55546125]
[1733524547303,0.0038694,100430.0,100420.0,0.59149529]
[1733524547717,0.0028694,100430.0,100420.0,0.58249529]
[1733524547918,0.0018694,100430.0,100420.0,0.59149529]
[1733524549226,0.0028694,100430.0,100420.0,0.59549529]
[1733524549639,0.0028694,100430.0,100420.0,0.50273498]
[1733524549849,0.0038694,100430.0,100420.0,0.51173498]
[1733524550867,0.0008693,100440.0,100430.0,0.4013]
[1733524551089,0.0008693,100440.0,100430.0,0.50132951]
[1733524551510,0.0008693,100440.0,100430.0,0.54356593]
[1733524552359,0.0008693,100440.0,100430.0,0.58206801]
[1733524552545,0.0018693,100440.0,100430.0,0.58806801]
[1733524552986,4e-07,100450.0,100440.0,0.1]
[1733524553154,4e-07,100450.0,100440.0,0.47932474]
[1733524553362,4e-07,100450.0,100440.0,0.48560511]
[1733524554303,4e-07,100450.0,100440.0,0.49160511]
[1733524555943,0.00040639,100450.0,100440.0,0.50060511]
[1733524556965,3.9e-07,100450.0,100440.0,0.50060511]
[1733524558796,3.9e-07,100450.0,100440.0,0.51089514]
[1733524561502,0.09095016,100480.0,100450.0,0.2827]
[1733524561739,0.09095016,100480.0,100460.0,0.00646624]
[1733524562348,0.06667684,100490.0,100460.0,0.08916624]
[1733524562571,0.24580635,100490.0,100460.0,0.23916624]
[1733524562798,0.001,100480.0,100460.0,0.28916624]
[1733524563021,0.001,100480.0,100460.0,0.43919575]
[1733524563227,0.001,100480.0,100460.0,0.48679575]
[1733524563445,0.001,100480.0,100460.0,0.40409575]
[1733524563662,0.001,100480.0,100470.0,0.2809]
[1733524564111,0.001,100480.0,100470.0,0.28628353]
[1733524565187,0.001,100480.0,100470.0,0.29428353]
[1733524565623,0.002,100480.0,100470.0,0.30328353]
[1733524566023,0.0028685,100480.0,100470.0,0.30328353]
[1733524569870,0.0028685,100480.0,100470.0,0.17238353]
[1733524570376,0.0028685,100480.0,100470.0,0.02238353]
[1733524570594,0.1268685,100480.0,100470.0,0.02238353]
[1733524583208,0.22689801,100480.0,100470.0,0.02238353]
[1733524583615,0.23677314,100480.0,100470.0,0.02238353]
[1733524583813,0.23677314,100480.0,100470.0,0.02424964]
[1733524584438,0.22689801,100480.0,100470.0,0.017]
[1733524584859,0.22689801,100480.0,100470.0,0.02445027]
[1733524585384,0.22589801,100480.0,100470.0,0.01545027]
[1733524585585,0.22589801,100480.0,100470.0,0.0135877]
[1733524585781,0.24989801,100480.0,100470.0,0.0195877]
[1733524586257,0.24889801,100480.0,100470.0,0.0115877]
[1733524586463,0.25880662,100480.0,100470.0,0.0155877]
[1733524586695,0.25790662,100480.0,100470.0,0.0155877]
[1733524586908,0.24799801,100480.0,100470.0,0.0155877]
[1733524587043,0.2579061,100480.0,100470.0,0.0155877]
[1733524587438,0.24799801,100480.0,100470.0,0.0155877]
[1733524587684,0.25790491,100480.0,100470.0,0.0155877]
[1733524588326,0.25790482,100480.0,100470.0,0.0155877]
[1733524588463,0.25790482,100480.0,100470.0,0.0173239]
[1733524588684,0.25877292,100480.0,100470.0,0.0173239]
[1733524590388,0.25877292,100480.0,100470.0,0.0133239]
[1733524590774,0.25777292,100480.0,100470.0,0.0073239]
[1733524591013,0.25877292,100480.0,100470.0,0.0073239]
[1733524594086,0.21377292,100480.0,100470.0,0.00904313]
[1733524599271,0.19077292,100480.0,100470.0,0.00904313]
[1733524602194,0.19077505,100480.0,100470.0,0.00904313]
[1733524602798,0.19077505,100480.0,100470.0,0.00904213]
[1733524605869,0.19077626,100480.0,100470.0,0.00904213]
[1733524609953,0.18086611,100480.0,100470.0,0.00904213]
[1733524610153,0.19078203,100480.0,100470.0,0.00904213]
[1733524613520,0.18086611,100480.0,100470.0,0.00904213]
[1733524616812,0.1907904,100480.0,100470.0,0.00904213]
[1733524617437,0.26994843,100480.0,100470.0,0.00904213]
[1733524621659,0.40357191,100480.0,100470.0,0.00904213]
[1733524626203,0.58173655,100480.0,100470.0,0.00904213]
[1733524629152,0.80444235,100480.0,100470.0,0.00904213]
[1733524632337,0.49451307,100480.0,100470.0,0.00904213]
[1733524632550,0.72791894,100480.0,100470.0,0.00904213]
[1733524632857,0.1231,100450.0,100440.0,0.0017362]
[1733524633053,0.82062482,100450.0,100440.0,0.0017362]
[1733524633257,1.03810882,100450.0,100440.0,0.0017362]
[1733524633655,1.26111114,100450.0,100440.0,0.0017362]
[1733524634150,1.03910882,100450.0,100440.0,0.0017362]
[1733524634357,1.34018294,100450.0,100440.0,0.0017362]
[1733524634536,1.04281872,100450.0,100440.0,0.0017362]
[1733524634786,1.05181872,100450.0,100440.0,0.0027362]
[1733524635157,1.27461839,100450.0,100440.0,0.0027362]
[1733524635309,1.1851613,100450.0,100440.0,0.0027362]
[1733524636310,1.19504436,100450.0,100440.0,0.0027362]
[1733524636516,1.32857961,100450.0,100440.0,0.0027362]
[1733524637327,1.41756811,100450.0,100440.0,0.0027362]
[1733524639416,1.19476844,100450.0,100440.0,0.0027362]
[1733524639580,1.19475713,100450.0,100440.0,0.0027362]
[1733524639777,1.01662501,100450.0,100440.0,0.00914653]
[1733524639988,1.02650388,100450.0,100440.0,0.0027362]
[1733524640192,0.90340388,100450.0,100440.0,0.0027362]
[1733524640369,0.67100838,100450.0,100440.0,0.0027362]
[1733524640579,0.67100838,100450.0,100440.0,0.00914608]
[1733524640785,0.12390838,100450.0,100440.0,0.00914608]
[1733524641093,0.13131129,100450.0,100440.0,0.00914608]
[1733524641886,0.12731129,100450.0,100440.0,0.00914608]
[1733524642369,0.12931129,100450.0,100440.0,0.00914608]
[1733524642696,0.10943242,100450.0,100440.0,0.00814608]
[1733524642834,0.11443242,100450.0,100440.0,0.00914608]
[1733524643483,0.10743242,100450.0,100440.0,0.00814608]
[1733524643638,0.10202951,100450.0,100440.0,0.00814608]
[1733524643838,0.10302951,100450.0,100440.0,0.00814608]
[1733524644689,0.003,100450.0,100440.0,0.11494165]
[1733524645131,0.001,100450.0,100440.0,0.11494165]
[1733524645535,0.001,100450.0,100440.0,0.11394608]
[1733524646380,0.001,100450.0,100440.0,0.11494159]
[1733524646601,0.001,100450.0,100440.0,0.11394608]
[1733524647157,0.001,100450.0,100440.0,0.11494159]
[1733524647983,0.001,100450.0,100440.0,0.11394608]
[1733524648188,0.001,100450.0,100440.0,0.11494159]
[1733524648829,0.10102951,100450.0,100440.0,0.09194159]
[1733524648988,0.001,100450.0,100440.0,0.11394608]
[1733524649540,0.001,100450.0,100440.0,0.11494159]
[1733524649973,0.001,100450.0,100440.0,0.11394608]
[1733524652721,0.00741528,100460.0,100440.0,0.11394608]
[1733524652855,0.001,100450.0,100440.0,0.12394608]
[1733524653197,0.10744479,100460.0,100440.0,0.11794608]
[1733524653642,0.001,100450.0,100440.0,0.01]
[1733524654109,0.001,100450.0,100440.0,0.006]
[1733524654337,0.10744479,100460.0,100430.0,0.1986]
[1733524654546,0.10744479,100460.0,100440.0,0.004]
[1733524654779,0.10744479,100460.0,100440.0,0.006]
[1733524655364,0.10744479,100460.0,100440.0,0.002]
[1733524655790,0.10744479,100460.0,100430.0,0.2026]
[1733524655989,0.10744479,100460.0,100440.0,0.0009955]
[1733524656189,0.001,100450.0,100440.0,0.0069955]
[1733524656391,0.001,100450.0,100440.0,0.0009955]
[1733524656622,0.001,100450.0,100440.0,0.0783955]
[1733524656926,0.001,100450.0,100440.0,0.0803955]
[1733524657150,0.10002951,100460.0,100440.0,0.08366115]
[1733524657312,0.001,100450.0,100440.0,0.09066115]
[1733524657939,0.001,100450.0,100440.0,0.08966115]
[1733524658187,0.001,100450.0,100440.0,0.09366115]
[1733524658559,0.001,100450.0,100440.0,0.09539735]
[1733524662098,0.001,100450.0,100440.0,0.10542889]
[1733524663678,0.001,100450.0,100440.0,0.30132889]
[1733524663933,0.001,100450.0,100440.0,0.30033339]
[1733524665048,0.001,100450.0,100440.0,0.5233629]
[1733524667775,0.001,100450.0,100440.0,0.5193629]
[1733524667995,0.001,100450.0,100440.0,0.5253629]
[1733524668701,0.0008681,100470.0,100450.0,0.15]
[1733524668909,0.0008681,100470.0,100450.0,0.15099529]
[1733524669128,0.0008681,100470.0,100460.0,0.00518581]
[1733524670200,0.0018681,100470.0,100460.0,0.0061811]
[1733524670452,0.0008681,100470.0,100460.0,0.00818581]
[1733524670645,0.0008681,100470.0,100460.0,0.003]
[1733524670857,0.0008681,100470.0,100460.0,0.00818581]
[1733524671071,0.0008681,100470.0,100460.0,0.01218581]
[1733524671528,0.0008681,100470.0,100460.0,0.0131811]
[1733524676112,0.0008681,100470.0,100460.0,0.02332529]
[1733524676323,0.0008681,100470.0,100460.0,0.30252529]
[1733524676535,0.0008681,100470.0,100460.0,0.30153]
[1733524683429,0.0008681,100470.0,100460.0,0.37453]
[1733524683636,0.0008681,100470.0,100460.0,0.42453]
[1733524683848,0.0008681,100470.0,100460.0,0.52455951]
[1733524684700,0.0008681,100470.0,100460.0,0.83591328]
[1733524685116,0.0008681,100470.0,100460.0,0.83591517]
[1733524685569,0.0008681,100470.0,100460.0,0.83291517]
[1733524685770,0.0008681,100470.0,100460.0,0.82891517]
[1733524685976,0.0008681,100470.0,100460.0,0.83591517]
[1733524686185,0.0018681,100470.0,100460.0,0.84491517]
[1733524686394,0.0018681,100470.0,100460.0,1.06031207]
[1733524686869,0.0018681,100470.0,100460.0,1.06931207]
[1733524690423,0.0018681,100470.0,100460.0,1.06895963]
[1733524691063,0.0018681,100470.0,100460.0,1.02450962]
[1733524691273,0.0018681,100470.0,100460.0,0.53555951]
[1733524692692,0.0018681,100470.0,100460.0,0.80218207]
[1733524694079,0.0018681,100470.0,100460.0,0.79318207]
[1733524694253,0.0008681,100470.0,100460.0,0.78418207]
[1733524694480,0.0008681,100470.0,100460.0,0.79318207]
[1733524694643,0.0008681,100470.0,100460.0,1.19586695]
[1733524694871,0.0008681,100470.0,100460.0,0.92924439]
[1733524695071,0.0008681,100470.0,100460.0,1.19556779]
[1733524695280,0.0008681,100470.0,100460.0,0.92924439]
[1733524695680,0.0008681,100470.0,100460.0,0.53555951]
[1733524695880,0.0008681,100470.0,100460.0,0.92879962]
[1733524696084,0.0008681,100470.0,100460.0,1.1950398]
[1733524696706,0.0008689,100490.0,100480.0,0.1]
[1733524696916,0.0008689,100490.0,100480.0,0.79122303]
[1733524697126,0.0008689,100490.0,100480.0,0.79520128]
[1733524697974,0.0008689,100490.0,100480.0,0.80120128]
[1733524698182,0.0008689,100490.0,100480.0,1.03205749]
[1733524698831,0.00072379,100490.0,100480.0,1.05505749]
[1733524700190,0.00072379,100490.0,100480.0,0.83320128]
[1733524700649,0.00072379,100490.0,100480.0,0.82720128]
[1733524700855,0.00072379,100490.0,100480.0,0.83620128]
[1733524701069,0.00072379,100490.0,100480.0,0.82720128]
[1733524701302,0.00072379,100490.0,100480.0,0.81820128]
[1733524701528,0.00072379,100490.0,100480.0,0.82720128]
[1733524701952,0.00072379,100490.0,100480.0,0.83620128]
[1733524702404,0.00072379,100490.0,100480.0,1.05805749]
[1733524703277,0.00072379,100490.0,100480.0,0.83620128]
[1733524703499,0.00072379,100490.0,100480.0,1.05805749]
[1733524704372,0.00072379,100490.0,100480.0,1.06804526]
[1733524705021,0.00072379,100490.0,100480.0,0.93493154]
[1733524707217,0.00072379,100490.0,100480.0,0.90701356]
[1733524709149,0.00072379,100490.0,100480.0,0.72952859]
[1733524709597,0.00072379,100490.0,100480.0,0.76257531]
[1733524709823,0.00072379,100490.0,100480.0,1.02880276]
[1733524710068,0.00072379,100490.0,100480.0,1.03176348]
[1733524712184,0.00072379,100490.0,100480.0,0.80944796]
[1733524712582,0.00072379,100490.0,100480.0,1.23562379]
[1733524712813,0.00072379,100490.0,100480.0,0.96985565]
[1733524713198,0.0008682,100530.0,100520.0,0.07208202]
[1733524713370,0.0008682,100530.0,100520.0,0.32310603]
[1733524713573,0.0008682,100530.0,100520.0,0.45977848]
[1733524713860,0.0008682,100530.0,100520.0,0.63687801]
[1733524714062,0.0008682,100530.0,100520.0,0.85825243]
[1733524714270,0.0008682,100530.0,100520.0,0.93865243]
[1733524714525,0.0008682,100530.0,100520.0,0.98069915]
[1733524714735,0.0008682,100530.0,100520.0,1.0149264]
[1733524714946,0.0008682,100530.0,100520.0,0.91920175]
[1733524715153,0.0008682,100530.0,100520.0,1.05184861]
[1733524715345,0.0008682,100530.0,100520.0,1.08384861]
[1733524715562,0.0008682,100530.0,100520.0,0.95120175]
[1733524716312,0.0008682,100530.0,100520.0,0.95967635]
[1733524717153,0.0008682,100530.0,100520.0,0.94167635]
[1733524717547,0.0008682,100530.0,100520.0,0.95067635]
[1733524718057,0.0008682,100530.0,100520.0,1.0832382]
[1733524718553,0.0008682,100530.0,100520.0,0.95967635]
[1733524718996,0.0008682,100530.0,100520.0,0.9698891]
[1733524719219,0.0008682,100530.0,100520.0,1.10243511]
[1733524720567,0.0008682,100530.0,100520.0,1.14219211]
[1733524721006,0.0008682,100530.0,100520.0,1.07491814]
[1733524721450,0.0008682,100530.0,100520.0,1.07459106]
[1733524724195,0.0008682,100530.0,100520.0,0.79955395]
[1733524724404,0.0008682,100530.0,100520.0,1.09768441]
[1733524724607,0.0008682,100530.0,100520.0,1.08868441]
[1733524724830,0.0008682,100530.0,100520.0,0.82360067]
[1733524725231,0.0008682,100530.0,100520.0,0.61169755]
[1733524725694,0.0008682,100530.0,100520.0,0.87686934]
[1733524726112,0.0008682,100530.0,100520.0,0.86786934]
[1733524726298,0.0008682,100530.0,100520.0,1.07984583]
[1733524726520,0.0008682,100530.0,100520.0,1.08884583]
[1733524726717,0.0008682,100530.0,100520.0,1.09784583]
[1733524727404,0.0008682,100530.0,100520.0,1.10084165]
[1733524727601,0.0008682,100530.0,100520.0,0.87986516]
[1733524728327,0.0008682,100530.0,100520.0,0.61469337]
[1733524729808,0.0008688,100540.0,100530.0,0.35725955]
[1733524730014,0.0008688,100540.0,100530.0,0.49238554]
[1733524730211,0.0008688,100540.0,100530.0,0.49706242]
[1733524730617,0.0008688,100540.0,100530.0,0.54696242]
[1733524731232,0.0008688,100540.0,100530.0,0.55596242]
[1733524731506,0.0008688,100540.0,100530.0,0.56496242]
[1733524731716,0.0008688,100540.0,100530.0,0.52986594]
[1733524732060,0.0008688,100540.0,100530.0,0.56496242]
[1733524732496,0.0008688,100540.0,100530.0,0.78587685]
[1733524732932,0.0008693,100550.0,100540.0,0.07208202]
[1733524733146,0.0008693,100550.0,100540.0,0.35077648]
[1733524733375,0.0008693,100550.0,100540.0,0.34978228]
[1733524734179,0.0008693,100550.0,100540.0,0.36778228]
[1733524737411,0.0008693,100550.0,100540.0,0.40345981]
[1733524737622,0.0008693,100550.0,100540.0,0.71262622]
[1733524738732,0.0008693,100550.0,100540.0,0.93345937]
[1733524738959,0.0008693,100550.0,100540.0,0.71262622]
[1733524739653,0.0008693,100550.0,100540.0,0.94326922]
[1733524739872,0.0008693,100550.0,100540.0,0.90758816]
[1733524740091,0.0008693,100550.0,100540.0,0.94326569]